fUST/lending_fUST_20240930
["ID","MTS","AMOUNT","RATE_DAILY","PERIOD"]
[339498812,1727640647961,-3064.747441,0.00015747,2]
[339498813,1727640647971,-464.373909,0.00015747,2]
[339498814,1727640647981,-3064.747441,0.00015747,2]
[339498815,1727640647991,-464.373909,0.00015747,2]
[339498816,1727640648001,-151.0,0.00015747,2]
[339498817,1727640648011,-464.373909,0.00015747,2]
[339498818,1727640648020,-151.0,0.00015747,2]
[339498819,1727640648029,-464.373909,0.00015747,2]
[339498820,1727640648041,-464.373906,0.00015747,2]
[339498821,1727640648051,-2860.683139,0.00015747,2]
[339498822,1727640648061,-2860.683139,0.00015747,2]
[339498823,1727640648071,-151.0,0.00015747,2]
[339498824,1727640648080,-594.442648,0.00015747,2]
[339498825,1727640648090,-594.442648,0.00015747,2]
[339498826,1727640648099,-1461.335449,0.00015747,2]
[339498827,1727640648110,-1461.335449,0.00015747,2]
[339498828,1727640648120,-594.442648,0.00015747,2]
[339498829,1727640648130,-594.442648,0.00015747,2]
[339498830,1727640648141,-1461.335449,0.00015747,2]
[339498831,1727640648152,-1461.33544303,0.00015747,2]
[339498832,1727640648162,-151.0,0.00015747,2]
[339498833,1727640648171,-151.0,0.00015747,2]
[339498834,1727640648181,-1526.728364,0.00015747,2]
[339498835,1727640648192,-1526.728364,0.00015747,2]
[339498836,1727640648203,-207.890172,0.00015747,2]
[339498837,1727640648214,-207.890172,0.00015747,2]
[339498838,1727640648224,-1526.728364,0.00015747,2]
[339498839,1727640648237,-1526.728368,0.00015747,2]
[339498840,1727640648247,-207.890172,0.00015747,2]
[339498841,1727640648259,-207.890172,0.00015747,2]
[339498842,1727640648269,-182.268473,0.00015747,2]
[339498843,1727640648279,-182.268473,0.00015747,2]
[339498844,1727640648289,-182.268473,0.00015747,2]
[339498845,1727640648299,-182.268473,0.00015747,2]
[339498846,1727640648308,-151.0,0.00015747,2]
[339498847,1727640648318,-151.0,0.00015747,2]
[339498848,1727640648328,-151.0,0.00015748,2]
[339498849,1727640648337,-151.0,0.00015748,2]
[339498850,1727640648347,-151.0,0.00015748,2]
[339498851,1727640648359,-5876.582831,0.00015748,2]
[339498852,1727640648369,-5876.582831,0.00015748,2]
[339498853,1727640648379,-5876.582831,0.00015748,2]
[339498854,1727640648389,-5876.582831,0.00015748,2]
[339498855,1727640648399,-387.382323,0.00015748,2]
[339498856,1727640648408,-387.382323,0.00015748,2]
[339498857,1727640648418,-387.382323,0.00015748,2]
[339498858,1727640648428,-387.382323,0.00015748,2]
[339498859,1727640648438,-780.57252,0.00015748,2]
[339498860,1727640648447,-780.57252,0.00015748,2]
[339498861,1727640648457,-780.57252,0.00015748,2]
[339498862,1727640648468,-780.57252,0.00015748,2]
[339498863,1727640648477,-3064.747441,0.00015748,2]
[339498864,1727640648487,-3064.747441,0.00015748,2]
[339498865,1727640648498,-3064.747441,0.00015748,2]
[339498866,1727640648507,-3064.747441,0.00015748,2]
[339498867,1727640648516,-151.0,0.00015748,2]
[339498868,1727640648525,-151.0,0.00015748,2]
[339498869,1727640648535,-594.442648,0.00015748,2]
[339498870,1727640648545,-594.442648,0.00015748,2]
[339498871,1727640648555,-594.442648,0.00015748,2]
[339498872,1727640648565,-594.442648,0.00015748,2]
[339498873,1727640648574,-151.0,0.00015748,2]
[339498874,1727640648583,-151.0,0.00015748,2]
[339498875,1727640648593,-207.890172,0.00015748,2]
[339498876,1727640648602,-207.890172,0.00015748,2]
[339498877,1727640648612,-207.890172,0.00015748,2]
[339498878,1727640648622,-207.890172,0.00015748,2]
[339498879,1727640648632,-182.268473,0.00015748,2]
[339498880,1727640648642,-182.268473,0.00015748,2]
[339498881,1727640648652,-182.268473,0.00015748,2]
[339498882,1727640648662,-182.268473,0.00015748,2]
[339498883,1727640648672,-151.0,0.00015749,2]
[339498884,1727640648684,-151.0,0.00015749,2]
[339498885,1727640648694,-151.0,0.00015749,2]
[339498886,1727640648704,-151.0,0.00015749,2]
[339498887,1727640648713,-151.0,0.00015749,2]
[339498888,1727640648723,-5876.582831,0.00015749,2]
[339498889,1727640648733,-5876.582831,0.00015749,2]
[339498890,1727640648745,-5876.582831,0.00015749,2]
[339498891,1727640648754,-5876.582838,0.00015749,2]
[339498892,1727640648764,-387.382323,0.00015749,2]
[339498893,1727640648774,-387.382329,0.00015749,2]
[339498894,1727640648785,-780.57252,0.00015749,2]
[339498895,1727640648794,-780.57251,0.00015749,2]
[339498896,1727640648804,-3064.747441,0.00015749,2]
[339498897,1727640648813,-3064.747449,0.00015749,2]
[339498898,1727640648824,-272.75752,0.00015749,2]
[339498899,1727640648834,-594.442648,0.00015749,2]
[339498900,1727640648843,-594.442656,0.00015749,2]
[339498901,1727640648853,-241.465756,0.00015749,2]
[339498902,1727640648862,-207.890172,0.00015749,2]
[339498903,1727640648873,-207.890165,0.00015749,2]
[339498904,1727640648882,-182.268473,0.00015749,2]
[339498905,1727640648892,-182.268477,0.00015749,2]
[339498906,1727640648902,-151.0,0.00015752,2]
[339498907,1727640648913,-151.0,0.00015752,2]
[339498908,1727640648922,-151.0,0.00015752,2]
[339498909,1727640648931,-151.0,0.00015752,2]
[339498910,1727640648941,-151.0,0.00015752,2]
[339498911,1727640648950,-1000.0,0.00015756,2]
[339498912,1727640648960,-410.66514299,0.00015757,2]
[339498913,1727640648969,-5116.5640117,0.00015757,2]
[339498982,1727641832721,-166.666667,0.00014684,2]
[339498984,1727641832731,-638.091687,0.00015342,2]
[339498986,1727641832740,-525.0,0.00015358,2]
[339498989,1727641832753,-150.0,0.00015358,2]
[339498991,1727641832763,-1217.0,0.00015358,2]
[339498993,1727641832773,-465.04383551,0.0001553,2]
[339498995,1727641832782,-300.0,0.00015546,2]
[339498997,1727641832791,-13.02180535,0.00015546,2]
[339498999,1727641832804,-286.97819465,0.00015546,2]
[339499001,1727641832813,-2223.02179835,0.00015547,2]
[339499069,1727641838906,-656.87,0.00015547,2]
[339499070,1727641839020,-4188.05224603,0.00015547,2]
[339499071,1727641839031,-3157.31021116,0.00015597,2]
[339499072,1727641839042,-1000.0,0.00015607,2]
[339499073,1727641839054,-177.858,0.00015618,2]
[339499074,1727641839064,-648.13271508,0.00015618,2]
[339499075,1727641839074,-500.0,0.00015647,2]
[339499076,1727641839083,-500.0,0.00015647,2]
[339499077,1727641839092,-500.0,0.00015647,2]
[339499078,1727641839102,-500.0,0.00015647,2]
[339499079,1727641839112,-347.46250195,0.00015647,2]
[339499080,1727641839122,-683.11346219,0.00015648,2]
[339499081,1727641839131,-33469.20303509,0.00015648,2]
[339499112,1727641843681,-311.69803547,0.00015648,2]
[339499113,1727641843693,-7416.12424416,0.00015648,2]
[339499114,1727641843767,-1075.48864695,0.00015648,2]
[339499166,1727643031850,-3459.7879075,0.00014452,2]
[339499167,1727643031862,-1014.67046642,0.00014452,2]
[339499262,1727643037904,-604.65204828,0.00014452,2]
[339499263,1727643037914,-300.0,0.00014475,2]
[339499264,1727643037923,-300.0,0.00014475,2]
[339499265,1727643037933,-2258.57922879,0.00014476,2]
[339499351,1727643043133,-1413.69963157,0.00014476,2]
[339499549,1727643045175,172.05,0.00010959,2]
[339499639,1727643046017,-300.78721,0.00014476,2]
[339499641,1727643046028,-1173.6576485,0.00014476,2]
[339499643,1727643046040,-411.11179919,0.00014476,2]
[339499659,1727643046173,-548.53406688,0.00014476,2]
[339499661,1727643046185,-613.5885,0.00014476,2]
[339499663,1727643046198,-1565.56464867,0.00014476,2]
[339499666,1727643046207,-600.0,0.00014638,2]
[339499668,1727643046217,-462.05311,0.00015342,2]
[339499670,1727643046226,-155.5973704,0.00015372,2]
[339499672,1727643046237,-1038.19918089,0.00015377,2]
[339499960,1727643056205,860.27,0.00010959,2]
[339499961,1727643088042,161.0,0.0001254,2]
[339499962,1727643259528,413.68599759,0.000232,120]
[339499963,1727643449941,3296.23,0.00014117,2]
[339500009,1727644232139,-1175.58959362,0.00014451,2]
[339500012,1727644232161,-2168.27377356,0.00014451,2]
[339500014,1727644232171,-300.0,0.00015151,2]
[339500016,1727644232180,-300.0,0.00015151,2]
[339500018,1727644232190,-7067.94404438,0.0001528,2]
[339500021,1727644232202,-999.86162221,0.000153,2]
[339500023,1727644232211,-693.63227025,0.000153,2]
[339500025,1727644232220,-518.50617204,0.00015325,2]
[339500026,1727644232230,-438.950455,0.00015342,2]
[339500028,1727644232239,-518.50617204,0.00015354,2]
[339500030,1727644232249,-518.50617204,0.00015382,2]
[339500032,1727644232259,-518.50617204,0.00015411,2]
[339500035,1727644232270,-234.67062191,0.00015411,2]
[339500037,1727644232280,-1000.82008394,0.00015412,2]
[339500039,1727644232290,-135974.26561971,0.00015412,2]
[339500041,1727644232300,-500.0,0.00015412,2]
[339500043,1727644232310,-500.0,0.00015412,2]
[339500045,1727644232320,-500.0,0.00015412,2]
[339500047,1727644232330,-500.0,0.00015412,2]
[339500049,1727644232339,-500.0,0.00015412,2]
[339500051,1727644232349,-500.0,0.00015412,2]
[339500053,1727644232359,-285.44363601,0.00015412,2]
[339500055,1727644232369,-500.0,0.00015412,2]
[339500057,1727644232378,-500.0,0.00015412,2]
[339500059,1727644232387,-500.0,0.00015412,2]
[339500061,1727644232398,-500.0,0.00015412,2]
[339500063,1727644232407,-500.0,0.00015412,2]
[339500064,1727644232415,-500.0,0.00015412,2]
[339500066,1727644232425,-500.0,0.00015412,2]
[339500068,1727644232434,-577.79296785,0.00015412,2]
[339500070,1727644232443,-500.0,0.00015412,2]
[339500072,1727644232452,-500.0,0.00015412,2]
[339500074,1727644232462,-500.0,0.00015412,2]
[339500075,1727644232472,-500.0,0.00015412,2]
[339500076,1727644232481,-500.0,0.00015412,2]
[339500078,1727644232491,-500.0,0.00015412,2]
[339500079,1727644232501,-500.0,0.00015412,2]
[339500080,1727644232511,-145494.99451243,0.00015413,2]
[339500081,1727644232523,-37177.47196308,0.00015413,2]
[339500090,1727644238130,-213.64302424,0.00015411,2]
[339500091,1727644238141,-646.26036903,0.00015411,2]
[339500092,1727644238152,-500.0,0.00015411,2]
[339500093,1727644238162,-500.0,0.00015411,2]
[339500094,1727644238171,-500.0,0.00015411,2]
[339500095,1727644238181,-500.0,0.00015411,2]
[339500096,1727644238190,-267.77122692,0.00015411,2]
[339500097,1727644238200,-500.0,0.00015411,2]
[339500098,1727644238209,-500.0,0.00015411,2]
[339500099,1727644238219,-500.0,0.00015411,2]
[339500100,1727644238228,-322.57099949,0.00015413,2]
[339500101,1727644238238,-150.0,0.00015425,2]
[339500102,1727644238248,-150.0,0.00015425,2]
[339500103,1727644238257,-150.0,0.00015425,2]
[339500104,1727644238267,-150.0,0.00015425,2]
[339500105,1727644238276,-150.0,0.00015425,2]
[339500106,1727644238285,-150.0,0.00015425,2]
[339500107,1727644238295,-525.0,0.00015425,2]
[339500108,1727644238304,-1217.0,0.00015425,2]
[339500109,1727644238314,-5358.19032445,0.00015429,2]
[339500110,1727644238338,-4834.14714758,0.00015429,2]
[339500111,1727644238350,-670.24779425,0.00015429,2]
[339500112,1727644238383,-39201.71291736,0.00015429,2]
[339500113,1727644238394,-600.30958382,0.00015429,2]
[339500119,1727644240218,-57235.81618195,0.00015412,2]
[339500120,1727644240228,-10333.73805754,0.00015429,2]
[339500121,1727644240238,-38639.54782284,0.00015439,2]
[339500122,1727644240248,-518.50617204,0.00015439,2]
[339500123,1727644240257,-13548.96686945,0.00015472,2]
[339500124,1727644240269,-16558.11098447,0.00015472,2]
[339500207,1727645432273,-150.0,0.0001508,2]
[339500208,1727645432283,-242.18759621,0.00015124,2]
[339500209,1727645432294,-5795.46395147,0.00015124,2]
[339500210,1727645432303,-300.0,0.00015242,2]
[339500211,1727645432313,-300.0,0.00015242,2]
[339500212,1727645432322,-855.18604853,0.00015273,2]
[339500214,1727645432343,-2627.75533547,0.00015273,2]
[339500240,1727645438468,-2827.294796,0.00015273,2]
[339500242,1727645438484,-757.70786438,0.00015273,2]
[339500244,1727645438494,-252.8213826,0.00015342,2]
[339500273,1727645442034,-403.3657204,0.00015342,2]
[339500274,1727645442044,-600.0,0.00015351,2]
[339500275,1727645442054,-1000.0,0.00015381,2]
[339500276,1727645442064,-1000.0,0.00015382,2]
[339500277,1727645442073,-453.08810754,0.00015427,2]
[339500278,1727645442083,-500.0,0.00015427,2]
[339500279,1727645442092,-800.65606716,0.00015428,2]
[339500280,1727645442102,-692.408509,0.00015428,2]
[339500281,1727645442111,-692.408509,0.00015428,2]
[339500282,1727645442120,-2860.683139,0.00015428,2]
[339500283,1727645442131,-2860.683139,0.00015428,2]
[339500284,1727645442140,-2000.0,0.00015428,2]
[339500285,1727645442150,-208.21312646,0.00015458,2]
[339500286,1727645442159,-2000.0,0.00015472,2]
[339500287,1727645442168,-692.408509,0.00015473,2]
[339500288,1727645442178,-692.408509,0.00015473,2]
[339500289,1727645442187,-2860.683139,0.00015473,2]
[339500290,1727645442197,-2398.77156416,0.00015473,2]
[339500311,1727645762719,60835.26717248,0.00021,60]
[339500353,1727646632708,-465.00219177,0.00014716,2]
[339500355,1727646632718,-21.54657059,0.00015139,2]
[339500358,1727646632731,-2776.06602369,0.00015139,2]
[339500361,1727646632743,-631.33320125,0.00015139,2]
[339500709,1727647832533,-300.0,0.00014794,2]
[339500710,1727647832543,-173.83415027,0.00014794,2]
[339500711,1727647832605,-126.16584973,0.00014794,2]
[339500712,1727647832615,-640.52485373,0.00014795,2]
[339500713,1727647832626,-114.7754355,0.00014795,2]
[339500866,1727647839937,-164.26943534,0.00014795,2]
[339500867,1727647839947,-500.0,0.00014795,2]
[339500868,1727647840163,-452.38225832,0.00014795,2]
[339500869,1727647840173,-500.0,0.00014795,2]
[339500870,1727647840182,-585.05794417,0.00014795,2]
[339500871,1727647840192,-637.43985884,0.00014795,2]
[339500872,1727647840201,-500.0,0.00014795,2]
[339500873,1727647840209,-500.0,0.00014795,2]
[339500874,1727647840218,-500.0,0.00014795,2]
[339500875,1727647840227,-28617.90809097,0.00014795,2]
[339500876,1727647840236,-67872.35737436,0.00014795,2]
[339500877,1727647840246,-58661.8010018,0.00014796,2]
[339500878,1727647840255,-47293.3227673,0.00014806,2]
[339500879,1727647840265,-7067.94404438,0.00014994,2]
[339500880,1727647840274,-6898.1254915,0.00015,2]
[339500881,1727647840283,-1236.3241189,0.00015136,2]
[339500882,1727647840292,-500.0,0.00015139,2]
[339500883,1727647840301,-209.3051165,0.000152,2]
[339500884,1727647840310,-405.219019,0.000152,2]
[339500885,1727647840319,-153.0,0.000152,2]
[339500886,1727647840328,-209.3051165,0.000152,2]
[339500887,1727647840337,-209.3051165,0.000152,2]
[339500888,1727647840349,-228.24824247,0.00015242,2]
[339500889,1727647840358,-800.0,0.00015285,2]
[339500890,1727647840367,-153.0,0.000153,2]
[339500891,1727647840376,-153.0,0.000153,2]
[339500892,1727647840385,-153.0,0.000153,2]
[339500893,1727647840394,-307.8658611,0.000153,2]
[339500894,1727647840403,-153.0,0.000153,2]
[339500895,1727647840413,-209.3051165,0.000153,2]
[339500896,1727647840423,-3264.54351685,0.00015342,2]
[339500897,1727647840432,-648.377748,0.00015342,2]
[339500898,1727647840443,-600.0,0.00015351,2]
[339500899,1727647840454,-58661.8010018,0.00015358,2]
[339500900,1727647840463,-464.373909,0.00015368,2]
[339500901,1727647840473,-464.373909,0.00015368,2]
[339500902,1727647840482,-151.0,0.00015368,2]
[339500903,1727647840492,-294.49593,0.00015368,2]
[339500904,1727647840502,-294.49593,0.00015368,2]
[339500905,1727647840514,-151.0,0.00015368,2]
[339500906,1727647840524,-151.0,0.00015368,2]
[339500907,1727647840536,-1526.728364,0.00015368,2]
[339500908,1727647840547,-3064.747441,0.00015368,2]
[339500909,1727647840558,-1526.728364,0.00015368,2]
[339500910,1727647840567,-3064.747441,0.00015368,2]
[339500911,1727647840577,-151.0,0.00015368,2]
[339500912,1727647840586,-151.0,0.00015368,2]
[339500913,1727647840597,-442.83569,0.00015368,2]
[339500914,1727647840607,-442.83569,0.00015368,2]
[339500915,1727647840616,-151.0,0.00015368,2]
[339500916,1727647840626,-151.0,0.00015368,2]
[339500917,1727647840636,-151.0,0.00015378,2]
[339500918,1727647840648,-151.0,0.00015378,2]
[339500919,1727647840658,-297.12374,0.00015378,2]
[339500920,1727647840668,-151.0,0.00015378,2]
[339500921,1727647840680,-1505.863614,0.00015378,2]
[339500922,1727647840691,-387.382323,0.00015378,2]
[339500923,1727647840701,-1505.863614,0.00015378,2]
[339500924,1727647840711,-387.382323,0.00015378,2]
[339500925,1727647840722,-151.0,0.00015378,2]
[339500926,1727647840733,-1461.335449,0.00015378,2]
[339500927,1727647840744,-151.0,0.00015378,2]
[339500928,1727647840755,-1461.335449,0.00015378,2]
[339500929,1727647840764,-920.36996,0.00015378,2]
[339500930,1727647840774,-920.36996,0.00015378,2]
[339500931,1727647840787,-58661.8010018,0.0001538,2]
[339500932,1727647840797,-220.249443,0.00015388,2]
[339500933,1727647840808,-220.249443,0.00015388,2]
[339500934,1727647840818,-47293.3227673,0.0001539,2]
[339500935,1727647840829,-244.689,0.00015396,2]
[339500936,1727647840841,-3351.2714951,0.00015396,2]
[339500937,1727647840854,-209.3051165,0.00015398,2]
[339500938,1727647840865,-208.0691205,0.00015398,2]
[339500939,1727647840874,-153.0,0.000154,2]
[339500940,1727647840883,-153.0,0.000154,2]
[339500941,1727647840892,-209.3051165,0.000154,2]
[339500942,1727647840902,-215.8565807,0.000154,2]
[339500943,1727647840911,-153.0,0.000154,2]
[339500944,1727647840920,-153.0,0.000154,2]
[339500945,1727647840929,-306.0,0.000154,2]
[339500946,1727647840938,-306.0,0.000154,2]
[339500947,1727647840949,-419.50715,0.000154,2]
[339500948,1727647840962,-209.3051165,0.000154,2]
[339500949,1727647840971,-153.0,0.000154,2]
[339500950,1727647840980,-153.0,0.000154,2]
[339500951,1727647840990,-153.0,0.000154,2]
[339500952,1727647840999,-209.3051165,0.000154,2]
[339500953,1727647841009,-465.00010959,0.00015452,2]
[339500954,1727647841019,-800.0,0.00015462,2]
[339500955,1727647841028,-464.373909,0.00015462,2]
[339500956,1727647841037,-464.373909,0.00015462,2]
[339500957,1727647841047,-151.0,0.00015462,2]
[339500958,1727647841057,-294.49593,0.00015462,2]
[339500959,1727647841066,-294.49593,0.00015462,2]
[339500960,1727647841075,-151.0,0.00015462,2]
[339500961,1727647841085,-151.0,0.00015462,2]
[339500962,1727647841100,-1526.728364,0.00015462,2]
[339500963,1727647841110,-3064.747441,0.00015462,2]
[339500964,1727647841119,-1526.728364,0.00015462,2]
[339500965,1727647841129,-3064.747441,0.00015462,2]
[339500966,1727647841138,-151.0,0.00015462,2]
[339500967,1727647841148,-151.0,0.00015462,2]
[339500968,1727647841158,-442.83569,0.00015462,2]
[339500969,1727647841167,-442.83569,0.00015462,2]
[339500970,1727647841177,-151.0,0.00015462,2]
[339500971,1727647841186,-58661.8010018,0.00015462,2]
[339500972,1727647841195,-58661.8010018,0.00015465,2]
[339500973,1727647841205,-3599.47332277,0.0001547,2]
[339500974,1727647841216,-410.66514299,0.00015472,2]
[339500975,1727647841229,-12086.99707171,0.00015472,2]
[339500976,1727647841238,-254.61884495,0.00015473,2]
[339500977,1727647841247,-500.0,0.00015473,2]
[339500978,1727647841256,-500.0,0.00015473,2]
[339500979,1727647841266,-500.0,0.00015473,2]
[339500980,1727647841276,-500.0,0.00015473,2]
[339500981,1727647841285,-500.0,0.00015473,2]
[339500982,1727647841294,-2000.0,0.00015473,2]
[339500983,1727647841304,-3576.70969629,0.00015475,2]
[339500984,1727647841337,-4925.29999922,0.00015475,2]
[339500985,1727647841353,-2353.37280432,0.00015475,2]
[339501008,1727647845852,-153.0,0.000153,2]
[339501009,1727647845862,-209.3051165,0.000153,2]
[339501010,1727647845871,-151.0,0.00015368,2]
[339501011,1727647845880,-197.90936712,0.00015475,2]
[339501012,1727647845951,-308.04472625,0.00015475,2]
[339501124,1727649040156,-378.413303,0.00014285,2]
[339501126,1727649040166,-611.6636563,0.00014334,2]
[339501127,1727649040176,-159.809267,0.00014385,2]
[339501129,1727649040186,-1018.14561177,0.00015009,2]
[339501130,1727649040195,-159.809267,0.00015135,2]
[339501132,1727649040204,-300.0,0.00015199,2]
[339501134,1727649040214,-300.0,0.00015199,2]
[339501136,1727649040224,-153.0,0.000152,2]
[339501138,1727649040234,-153.0,0.000152,2]
[339501140,1727649040243,-209.3051165,0.000152,2]
[339501141,1727649040252,-412.4195684,0.000152,2]
[339501143,1727649040261,-450.468707,0.000152,2]
[339501145,1727649040271,-153.0,0.000152,2]
[339501147,1727649040280,-153.0,0.000152,2]
[339501149,1727649040290,-209.3051165,0.000152,2]
[339501151,1727649040299,-209.3051165,0.000152,2]
[339501153,1727649040309,-412.4195684,0.000152,2]
[339501155,1727649040319,-412.4195684,0.000152,2]
[339501157,1727649040328,-153.0,0.000152,2]
[339501159,1727649040338,-412.4195684,0.000152,2]
[339501160,1727649040347,-7067.94404438,0.00015255,2]
[339501161,1727649040357,-4579.61675175,0.00015316,2]
[339501162,1727649040366,-615.958861,0.00015342,2]
[339501163,1727649040376,-600.0,0.00015351,2]
[339501164,1727649040385,-151.0,0.00015358,2]
[339501165,1727649040395,-208.2131265,0.00015365,2]
[339501166,1727649040404,-193.164634,0.00015368,2]
[339501167,1727649040413,-193.164634,0.00015368,2]
[339501168,1727649040423,-151.0,0.00015368,2]
[339501169,1727649040433,-207.890172,0.00015368,2]
[339501170,1727649040443,-207.890172,0.00015368,2]
[339501171,1727649040452,-151.0,0.00015368,2]
[339501172,1727649040463,-151.0,0.00015368,2]
[339501173,1727649040474,-151.0,0.00015368,2]
[339501174,1727649040484,-151.0,0.00015368,2]
[339501175,1727649040493,-3351.2714951,0.00015375,2]
[339501176,1727649040503,-500.0,0.00015377,2]
[339501177,1727649040513,-151.0,0.0001538,2]
[339501178,1727649040523,-151.0,0.0001539,2]
[339501179,1727649040532,-244.689,0.00015398,2]
[339501180,1727649040544,-209.3051165,0.000154,2]
[339501181,1727649040554,-209.3051165,0.000154,2]
[339501182,1727649040563,-209.3051165,0.000154,2]
[339501183,1727649040572,-153.0,0.000154,2]
[339501184,1727649040582,-209.3051165,0.000154,2]
[339501185,1727649040592,-206.0202492,0.000154,2]
[339501186,1727649040601,-412.4195684,0.000154,2]
[339501187,1727649040610,-153.0,0.000154,2]
[339501188,1727649040619,-153.0,0.000154,2]
[339501189,1727649040628,-209.3051165,0.000154,2]
[339501190,1727649040637,-209.3051165,0.000154,2]
[339501191,1727649040647,-153.0,0.000154,2]
[339501192,1727649040656,-209.3051165,0.000154,2]
[339501193,1727649040666,-975.4861341,0.000154,2]
[339501194,1727649040677,-153.0,0.000154,2]
[339501195,1727649040692,-209.3051165,0.000154,2]
[339501196,1727649040702,-209.3051165,0.000154,2]
[339501197,1727649040712,-465.00010959,0.00015414,2]
[339501198,1727649040721,-14927.6794301,0.00015416,2]
[339501199,1727649040731,-512.41988298,0.00015416,2]
[339501200,1727649040743,-409.54056091,0.00015454,2]
[339501201,1727649040753,-316.66758083,0.00015454,2]
[339501202,1727649040763,-500.0,0.00015454,2]
[339501203,1727649040771,-196.20790119,0.00015454,2]
[339501204,1727649040780,-500.0,0.00015454,2]
[339501205,1727649040790,-500.0,0.00015454,2]
[339501206,1727649040799,-500.0,0.00015454,2]
[339501207,1727649040808,-102728.2,0.00015455,2]
[339501208,1727649040818,-58805.7705338,0.00015455,2]
[339501461,1727650240243,-300.0,0.00015199,2]
[339501462,1727650240253,-300.0,0.00015199,2]
[339501463,1727650240263,-6026.17420486,0.000152,2]
[339501464,1727650240362,-3977.65275025,0.000152,2]
[339501465,1727650240372,-4028.10102497,0.00015226,2]
[339501466,1727650240382,-5603.45065087,0.00015252,2]
[339501467,1727650240391,-4000.0,0.000153,2]
[339501468,1727650240401,-150.112233,0.000153,2]
[339501469,1727650240411,-150.112233,0.000153,2]
[339501470,1727650240420,-500.0,0.0001532,2]
[339501471,1727650240430,-500.0,0.0001532,2]
[339501472,1727650240439,-286.67839264,0.00015325,2]
[339501473,1727650240448,-500.0,0.00015325,2]
[339501474,1727650240457,-537.34553083,0.00015325,2]
[339501475,1727650240466,-500.0,0.00015325,2]
[339501476,1727650240476,-221.66730658,0.00015325,2]
[339501477,1727650240485,-409.93590638,0.00015325,2]
[339501478,1727650240495,-33993.56640493,0.00015325,2]
[339501479,1727650240504,-3447.14810035,0.00015325,2]
[339501542,1727651435498,-298.1383633,0.00014141,2]
[339501543,1727651435508,-171.085454,0.00014208,2]
[339501544,1727651435518,-171.085454,0.00014393,2]
[339501545,1727651435529,-171.085454,0.00014578,2]
[339501547,1727651435538,-171.085454,0.00014763,2]
[339501549,1727651435548,-171.085454,0.00014948,2]
[339501550,1727651435558,-153.0,0.00015,2]
[339501551,1727651435567,-84.27672639,0.00015,2]
[339501559,1727651438772,-69.14739961,0.00015,2]
[339501560,1727651438782,-153.0,0.00015,2]
[339501561,1727651438792,-153.0,0.00015,2]
[339501562,1727651438802,-3040.94456462,0.00015006,2]
[339501563,1727651438913,-1310.10708835,0.00015006,2]
[339501586,1727651440834,-1597.36081446,0.00015006,2]
[339501587,1727651440844,-300.0,0.00015195,2]
[339501588,1727651440854,-300.0,0.00015196,2]
[339501589,1727651440865,-153.0,0.000152,2]
[339501590,1727651440875,-153.0,0.000152,2]
[339501591,1727651440885,-153.0,0.000152,2]
[339501592,1727651440894,-2390.75543007,0.00015226,2]
[339501593,1727651440905,-1651.78551893,0.0001528,2]
[339501594,1727651440915,-286.67839264,0.00015284,2]
[339501595,1727651440926,-221.66730658,0.00015284,2]
[339501596,1727651440935,-500.0,0.00015284,2]
[339501597,1727651440945,-500.0,0.00015284,2]
[339501598,1727651440955,-200.95259975,0.00015284,2]
[339501599,1727651440965,-500.0,0.00015284,2]
[339501600,1727651440975,-415.56296687,0.00015284,2]
[339501601,1727651440985,-282.32867772,0.00015284,2]
[339501602,1727651440995,-22852.4207048,0.00015285,2]